[Event "3rd Rio Open-Rapid 2024"]
[Site "Rio de Janeiro"]
[Date "2024.04.24"]
[Round "6.2"]
[White "De Souza, Felipe Guimaraes"]
[Black "Librelato, Kathie Goulart"]
[Result "1-0"]
[ECO "C26"]
[WhiteElo "2022"]
[BlackElo "2165"]
[Annotator "TA"]
[PlyCount "116"]
[EventDate "2024.04.12"]
[EventType "swiss"]
[EventCountry "BRA"]
[SourceTitle "playchess.com"]
[Source "ChessBase"]
[SourceQuality "1"]
[TimeControl "600+5"]

{[%evp 14,116,0,-10,-12,-16,3,0,0,0,0,0,0,-10,0,-10,-48,-30,-51,-42,-31,-28,-29,-41,-54,-51,-45,-33,-6,-51,-22,-18,-25,-50,-44,-56,-49,-94,-81,-103,-7,-18,-1,-25,8,-22,-20,-55,0,0,0,-113,-97,-99,0,0,0,-83,-79,-110,-62,-121,0,-100,668,669,972,920,976,933,1234,1233,29993,1562,1521,1502,1080,1025,1018,937,5381,1140,2846,2445,29975,29976,29975,0,2170,832,840,846,759,678,1635,776,6524,6087,12846,7373,6334,6412,29973,29969,29971]} 1. e4 {[%emt 0:00:03]} e5 {[%emt 0:00:01]} 2. Nc3 {[%emt 0:00:03]} Nc6 {[%emt 0:00:01]} 3. g3 {[%emt 0:00:08]} Nf6 {[%emt 0:00:03]} 4. Bg2 {[%emt 0:00:03]} Bc5 {[%emt 0:00:03]} 5. h3 {[%emt 0:00:07]} d6 {[%emt 0:00:01]} 6. Nge2 {[%emt 0:00:06]} a6 {[%emt 0:00:01]} 7. d3 {[%emt 0:00:09]} O-O {[%emt 0:00:03]} 8. O-O {[%emt 0:00:09]} h6 {[%emt 0:00:25]} 9. Kh2 {[%emt 0:00:58]} Nd4 {[%emt 0:01:58]} 10. Nxd4 {[%emt 0:01:04]} Bxd4 {[%emt 0:00:05] The position is equal.} 11. f4 {[%emt 0:01:27]} c6 {[%emt 0:00:48]} 12. fxe5 {[%emt 0:01:01]} dxe5 {[%emt 0:00:10]} 13. Qf3 {[%emt 0:00:04]} Nh7 {[%emt 0:00:24]} 14. Bd2 {[%emt 0:00:59]} Be6 {[%emt 0:00:02]} 15. Ne2 {[%emt 0:00:21]} Bxb2 {[%emt 0:02:49]} 16. Rab1 {[%emt 0:00:02]} Ba3 {[%emt 0:00:00]} 17. Rxb7 {[%emt 0:00:04]} Rb8 {[%emt 0:00:01]} 18. Rfb1 {[%emt 0:00:14]} Rxb7 {[%emt 0:00:01]} 19. Rxb7 {[%emt 0:00:03]} Qa8 {[%emt 0:00:02]} 20. Rb1 {[%emt 0:00:25]} Rb8 {[%emt 0:00:04]} 21. Qf1 {[%emt 0:00:30]} Rb7 {[%emt 0:00:36]} (21... Bxa2 $2 22. Ra1 Rb2 23. Qd1 $18) 22. Bc3 {[%emt 0:00:08]} Bd6 {[%emt 0:00:21]} (22... Bxa2 $2 {perishes.} 23. Ra1 $18) 23. Ra1 {[%emt 0:00:19]} Qb8 {[%emt 0:00:06]} 24. a4 {[%emt 0:00:16]} Nf6 {[%emt 0:00:27]} 25. Ng1 {[%emt 0:00:41]} Nd7 {[%emt 0:00:12]} 26. Nf3 {[%emt 0:00:04]} Nc5 {[%emt 0:00:40]} ({Better is} 26... Bb4 $17 27. Qe1 c5) 27. Nh4 {[%emt 0:00:19]} Bd7 {[%emt 0:00:12]} 28. Nf5 {[%emt 0:00:11]} Bf8 {[%emt 0:00:10]} 29. Qc1 {[%emt 0:01:35]} Ne6 {[%emt 0:00:11]} 30. Qe1 {[%emt 0:00:09]} g6 {[%emt 0:00:10]} (30... Bb4 $15) 31. Ne3 $11 {[%emt 0:00:02]} Nd4 {[%emt 0:00:13]} 32. Bxd4 {[%emt 0:00:14]} (32. h4 $11) 32... exd4 $17 {[%emt 0:00:02]} 33. Nc4 {[%emt 0:00:02]} Rb4 {[%emt 0:00:41]} ({Black should play} 33... Be6 $17 34. e5 Bxc4 35. dxc4 Re7 36. Bxc6 Rxe5) 34. e5 $11 {[%emt 0:00:16]} Qc7 {[%emt 0:00:37]} 35. Nd2 {[%emt 0:00:09]} (35. Qf2 $11) 35... Be6 $17 {[%emt 0:00:08]} 36. Nf3 {[%emt 0:00:01]} Bd5 {[%emt 0:00:18]} (36... c5 $17 37. h4 Rb2) 37. Nd2 {[%emt 0:00:02]} (37. h4 $15) 37... Be6 {[%emt 0:00:08]} 38. Nf3 {[%emt 0:00:02] [#]} Bg7 $2 {[%emt 0:00:02][%mdl 8192] Black is on the road to losing.} 39. Qxb4 $18 {[%emt 0:00:05]} Bxe5 {[%emt 0:00:01]} 40. Nxe5 {[%emt 0:00:05]} Qxe5 {[%emt 0:00:01]} 41. Re1 {[%emt 0:00:04]} Qg5 {[%emt 0:00:03]} 42. Qxd4 {[%emt 0:00:05][%cal Oe1b1] Rb1! is the strong threat.} Qd2 {[%emt 0:00:04] [#]} 43. Rxe6 {[%emt 0:00:05]} fxe6 {[%emt 0:00:01]} 44. Qd8+ {[%emt 0:00:02]} Kf7 {[%emt 0:00:01]} 45. Qd7+ {[%emt 0:00:02]} Kf6 {[%emt 0:00:00]} 46. Qxc6 {[%emt 0:00:03]} a5 {[%emt 0:00:01]} 47. Qf3+ {[%emt 0:00:03]} Kg7 {[%emt 0:00:04]} 48. c4 {[%emt 0:00:02] White wants to mate with c5.} Qc2 {[%emt 0:00:06]} 49. Qb7+ {[%emt 0:00:07]} Kf6 {[%emt 0:00:02]} 50. Qf3+ {[%emt 0:00:04]} (50. Qb8 $142 g5 51. Qd8+ Ke5 52. Qxa5+ (52. d4+ Kf5 $18) 52... Kd4 53. Qb6+ Kxd3 54. a5 (54. Qxe6 Kd2 $18) 54... Qe2 55. a6) 50... Kg7 $1 {[%emt 0:00:00]} 51. c5 {[%emt 0:00:03]} Qxc5 {[%emt 0:00:04]} 52. Qe4 {[%emt 0:00:02]} Kf6 {[%emt 0:00:07]} 53. Qc4 {[%emt 0:00:06]} Qa3 {[%emt 0:00:06]} 54. h4 {[%emt 0:00:02]} Qb2 {[%emt 0:00:28]} 55. Qf4+ {[%emt 0:00:04]} Kg7 {[%emt 0:00:03]} 56. Qc7+ {[%emt 0:00:02]} Kf6 {[%emt 0:00:01]} 57. Qxa5 {[%emt 0:00:04]} Qd4 {[%emt 0:00:01] Inhibits Qc5.} 58. Qb5 {[%emt 0:00:05]} Kf7 {[%emt 0:01:25] Weighted Error Value: White=0.22 (precise) /Black=0.75.  Loses game:     	---       	Black=1      Mistake:       	White=3     	Black=4      Inaccurate:     	White=5     	Black=4      OK:         	White=8     	Black=10     Best:        	White=4     	Black=1} 1-0

[Event "3rd Rio Open-Rapid 2024"]
[Site "Rio de Janeiro"]
[Date "2024.04.24"]
[Round "6.3"]
[White "De Siqueira, Luigy Lira"]
[Black "Mattos, Bernardo Cunha"]
[Result "1-0"]
[ECO "B40"]
[WhiteElo "2274"]
[BlackElo "1710"]
[Annotator "TA"]
[PlyCount "47"]
[EventDate "2024.04.12"]
[EventType "swiss"]
[EventCountry "BRA"]
[SourceTitle "playchess.com"]
[Source "ChessBase"]
[SourceQuality "1"]
[TimeControl "600+5"]

{[%evp 13,47,0,0,0,15,6,2,0,6,9,11,14,19,21,9,8,47,42,146,140,260,249,307,214,219,193,217,202,253,158,184,182,532,511,629,629]} 1. e4 {[%emt 0:00:01]} c5 {[%emt 0:00:02]} 2. Nf3 {[%emt 0:00:01]} e6 {[%emt 0:00:01]} 3. d4 {[%emt 0:00:03]} cxd4 {[%emt 0:00:02]} 4. Nxd4 {[%emt 0:00:02]} Nf6 {[%emt 0:00:02]} 5. Bd3 {[%emt 0:00:01]} Nc6 {[%emt 0:00:02]} 6. Nxc6 {[%emt 0:00:02]} bxc6 {[%emt 0:00:02]} 7. O-O {[%emt 0:00:02]} d5 {[%emt 0:00:07]} 8. Qe2 {[%emt 0:00:02]} dxe4 {[%emt 0:00:29]} 9. Bxe4 {[%emt 0:00:02]} Nxe4 {[%emt 0:00:09]} 10. Qxe4 {[%emt 0:00:01][%cal Ob1c3] The position is equal.} Qd5 {[%emt 0:00:20]} 11. Qe2 {[%emt 0:00:02]} Bd6 {[%emt 0:00:22]} (11... Be7 {simplifies} 12. c4 Qa5 13. Bd2 Qc7) 12. Rd1 {[%emt 0:00:03]} Qe5 {[%emt 0:00:03]} 13. Qxe5 {[%emt 0:00:09]} Bxe5 {[%emt 0:00:02]} 14. Nd2 {[%emt 0:00:05][%cal Bb1d2,Bd2c4,Bc4d6,Bd6f7,Bf7e5,Be5d7,Bd7c5][%mdl 32]} Ke7 {[%emt 0:00:06][%cal Be8e7,Be7d8,Bd8c7][%mdl 32]} 15. Nc4 {[%emt 0:00:02]} Bf6 {[%emt 0:00:18]} (15... Bc7 $14) 16. Be3 $36 {[%emt 0:00:01][%mdl 2048] [#] And now Bc5+ would win. White is in control. White is more active.} Bd7 {[%emt 0:01:38] Black is weak on the dark squares} (16... Kf8 $16 {keeps fighting.} 17. Rd6 g5) 17. Bc5+ {[%emt 0:00:06]} Kd8 {[%emt 0:00:02]} 18. Nd6 {[%emt 0:00:07]} Kc7 {[%emt 0:00:22]} 19. Nxf7 {[%emt 0:00:05]} Rhe8 {[%emt 0:00:35]} 20. c3 {[%emt 0:00:01]} Be7 {[%emt 0:00:25]} 21. Be3 {[%emt 0:00:28]} Rf8 {[%emt 0:00:14]} 22. Ne5 {[%emt 0:00:02]} Bd6 $2 {[%emt 0:00:09] [#]} (22... Bc8 {is more resistant.} 23. Rd4 Rf5) 23. Nxd7 $18 {[%emt 0:00:16]} Rfd8 {[%emt 0:00:32]} 24. Nc5 {[%emt 0:00:01] Weighted Error Value: White=0.16 (very precise) /Black=0.68.  Mistake:       	---       	Black=3      Inaccurate:     	White=2     	Black=1      OK:         	White=8     	Black=3      Best:        	White=1     	---} 1-0

[Event "3rd Rio Open-Rapid 2024"]
[Site "Rio de Janeiro"]
[Date "2024.04.24"]
[Round "6.4"]
[White "Becker, Rogerio Sperb"]
[Black "Ribeiro, Matheus Mendes Domin"]
[Result "0-1"]
[ECO "E01"]
[WhiteElo "2054"]
[BlackElo "2228"]
[Annotator "TA"]
[PlyCount "74"]
[EventDate "2024.04.12"]
[EventType "swiss"]
[EventCountry "BRA"]
[SourceTitle "playchess.com"]
[Source "ChessBase"]
[SourceQuality "1"]
[TimeControl "600+5"]

{[%evp 10,74,7,0,8,15,10,17,15,0,0,0,0,0,43,-71,-64,-58,-76,-82,-78,-70,-63,-77,-73,-74,-73,-94,-77,-81,-67,-68,-51,-50,-48,-156,-138,-170,-170,-186,-186,-183,-188,-233,-220,-242,-244,-258,-242,-366,-376,-488,-491,-489,-495,-489,-486,-477,-445,-923,-911,-1871,-1593,-2150,-1874,-29984,-29982]} 1. c4 {[%emt 0:00:01]} e6 {[%emt 0:00:00]} 2. Nf3 {[%emt 0:00:02]} d5 {[%emt 0:00:02]} 3. d4 {[%emt 0:00:01]} Nf6 {[%emt 0:00:03]} 4. g3 {[%emt 0:00:01]} dxc4 {[%emt 0:00:01]} 5. Qc2 {[%emt 0:00:03]} Bd7 {[%emt 0:00:15]} 6. Qxc4 {[%emt 0:00:02]} c5 {[%emt 0:00:02]} 7. dxc5 {[%emt 0:00:19]} Qc7 {[%emt 0:00:02]} 8. Bg2 {[%emt 0:00:26]} Bxc5 {[%emt 0:00:02] The position is equal.} 9. Be3 {[%emt 0:00:29]} Qa5+ {[%emt 0:01:20]} 10. Bd2 {[%emt 0:00:23]} Qb6 {[%emt 0:00:02][%csl LRb2,LRf2][%cal Od7b5] aiming for ...Bb5!} 11. O-O {[%emt 0:00:08]} Bb5 {[%emt 0:00:10]} (11... Qxb2 $2 12. Qxc5 Qb6 (12... Qxa1 $2 13. Qa3 $18) 13. Qxb6 axb6 14. Rc1 $18) 12. Qb3 {[%emt 0:00:51]} (12. Qc2 $14) 12... Bxe2 $17 {[%emt 0:00:20]} 13. Qxb6 {[%emt 0:00:02]} axb6 {[%emt 0:00:52]} 14. Re1 {[%emt 0:00:04]} Bxf3 {[%emt 0:00:14]} 15. Bxf3 {[%emt 0:00:03]} Nc6 {[%emt 0:00:01]} 16. Nc3 {[%emt 0:00:08]} Nd4 {[%emt 0:00:34]} 17. Bd1 {[%emt 0:00:57]} ({Of course not} 17. Bxb7 Rb8 18. Bg2 Nc2 $17) 17... O-O {[%emt 0:00:22]} 18. Be3 {[%emt 0:00:07][%cal Ob2b4]} Rfd8 {[%emt 0:00:07]} 19. a3 {[%emt 0:00:10]} Nf5 {[%emt 0:00:16] Excellent horsemanship.} 20. Bg5 {[%emt 0:00:31]} h6 {[%emt 0:00:39] Black is more active.} 21. Bxf6 {[%emt 0:00:28]} gxf6 {[%emt 0:00:01]} 22. Bf3 {[%emt 0:00:16] Black converts the advantage convincingly.} ({White should try} 22. Rc1 $15) 22... Rd2 {[%emt 0:00:50][%csl LRb2,LRf2]} 23. Ne4 {[%emt 0:00:56]} Rxb2 {[%emt 0:00:05]} 24. Nxf6+ {[%emt 0:00:41] White is weak on the dark squares} Kg7 {[%emt 0:00:11]} 25. Ne4 {[%emt 0:00:13]} Nd4 {[%emt 0:01:06]} (25... Bxa3 26. Red1 Rb4 27. Rd3 $15) 26. Bh5 {[%emt 0:02:33]} f5 {[%emt 0:01:17]} 27. Nxc5 {[%emt 0:00:13]} bxc5 {[%emt 0:00:01]} 28. a4 {[%emt 0:00:00]} Rc8 {[%emt 0:00:16]} 29. Rec1 {[%emt 0:00:22]} (29. Red1 {was called for.}) 29... c4 $19 {[%emt 0:00:18]} 30. Rc3 {[%emt 0:00:14]} b5 {[%emt 0:00:16]} 31. axb5 {[%emt 0:00:21]} Nxb5 {[%emt 0:00:02]} 32. Rcc1 {[%emt 0:00:19]} c3 {[%emt 0:00:05]} 33. Bd1 {[%emt 0:00:10]} c2 {[%emt 0:02:58]} 34. Be2 {[%emt 0:00:06]} (34. Bxc2 $142 Rcxc2 35. Rxc2 Rxc2 36. Rd1) 34... Nd4 {[%emt 0:00:00]} 35. Bd3 {[%emt 0:00:02]} Rc3 {[%emt 0:00:00]} 36. Ra7+ {[%emt 0:00:30]} Kf6 {[%emt 0:00:00]} 37. Bxc2 {[%emt 0:00:02]} Ne2+ {[%emt 0:00:20] Weighted Error Value: White=0.86/Black=0.03 (flawless) .  Mistake:       	White=4     	---        Inaccurate:     	White=1     	Black=1      OK:         	White=14    	Black=14     Best:        	White=1     	Black=3} 0-1

[Event "3rd Rio Open-Rapid 2024"]
[Site "Rio de Janeiro"]
[Date "2024.04.24"]
[Round "6.5"]
[White "Deus Filho, Joaquim de"]
[Black "Roland, Marcos Maldonado"]
[Result "1-0"]
[ECO "C22"]
[WhiteElo "1884"]
[BlackElo "2089"]
[Annotator "NA RC"]
[PlyCount "29"]
[EventDate "2024.04.12"]
[EventType "swiss"]
[EventCountry "BRA"]
[SourceTitle "playchess.com"]
[Source "ChessBase"]
[SourceQuality "1"]
[TimeControl "600+5"]

1. e4 {[%emt 0:00:04]} e5 {[%emt 0:00:02]} 2. d4 {[%emt 0:00:08]} exd4 {[%emt 0:00:08]} 3. Qxd4 {[%emt 0:00:02]} Nc6 {[%emt 0:00:04]} 4. Qe3 {[%emt 0:00:02]} Qf6 {[%emt 0:00:50]} 5. Nc3 {[%emt 0:00:11]} Bb4 {[%emt 0:00:02]} 6. Bd2 {[%emt 0:00:05]} Nge7 {[%emt 0:00:02]} 7. Nf3 {[%emt 0:01:03]} O-O {[%emt 0:00:09]} 8. O-O-O {[%emt 0:00:03]} d6 {[%emt 0:00:12]} 9. Bc4 {[%emt 0:00:28]} Be6 {[%emt 0:00:34]} 10. Nd5 {[%emt 0:01:28]} Bxd2+ {[%emt 0:00:03]} 11. Rxd2 {[%emt 0:00:12]} Bxd5 {[%emt 0:00:03]} 12. exd5 {[%emt 0:00:12]} Na5 {[%emt 0:00:32]} 13. Bd3 {[%emt 0:01:04]} Nxd5 {[%emt 0:00:12]} 14. Qe4 {[%emt 0:00:04]} Nc3 {[%emt 0:00:59]} 15. Qxh7# {[%emt 0:06:14]} 1-0

[Event "3rd Rio Open-Rapid 2024"]
[Site "Rio de Janeiro"]
[Date "2024.04.24"]
[Round "7.1"]
[White "Fier, Alexandr"]
[Black "De Souza, Felipe Guimaraes"]
[Result "1/2-1/2"]
[ECO "C29"]
[WhiteElo "2566"]
[BlackElo "2022"]
[Annotator "TA"]
[PlyCount "61"]
[EventDate "2024.04.12"]
[EventType "swiss"]
[EventCountry "BRA"]
[SourceTitle "playchess.com"]
[Source "ChessBase"]
[SourceQuality "1"]
[TimeControl "600+5"]

{[%evp 9,61,-26,-18,0,39,1,52,45,45,-4,23,18,18,-6,47,28,56,52,64,70,64,24,115,117,107,112,121,111,114,108,234,151,164,114,191,129,145,120,106,109,112,108,210,199,203,216,243,220,238,250,687,82,15,20]} 1. e4 {[%emt 0:00:03]} e5 {[%emt 0:00:02]} 2. Nc3 {[%emt 0:00:03]} Nf6 {[%emt 0:00:09]} 3. f4 {[%emt 0:00:01]} d5 {[%emt 0:00:01]} 4. fxe5 {[%emt 0:00:02]} Nxe4 {[%emt 0:00:02]} 5. Nf3 {[%emt 0:00:00]} Nxc3 {[%emt 0:00:18]} 6. dxc3 {[%emt 0:00:01]} Bg4 {[%emt 0:00:13]} 7. Bf4 {[%emt 0:00:03]} c6 {[%emt 0:00:18]} ({Better is} 7... Be7 $11) 8. h3 $14 {[%emt 0:00:06] White is slightly better.} Bh5 {[%emt 0:00:03]} 9. Qe2 {[%emt 0:00:04]} (9. Bd3 $14) 9... Be7 {[%emt 0:00:10]} 10. O-O-O {[%emt 0:00:02]} Nd7 {[%emt 0:00:16]} 11. Qf2 {[%emt 0:00:06]} Nf8 {[%emt 0:00:09]} (11... Nc5 $11) 12. c4 {[%emt 0:00:19]} Qa5 {[%emt 0:00:04]} 13. Kb1 $1 {[%emt 0:00:03]} Ne6 {[%emt 0:00:22]} 14. Bd2 {[%emt 0:00:01]} Qc5 {[%emt 0:01:04]} 15. Be3 {[%emt 0:00:03]} Qa5 {[%emt 0:00:08]} (15... d4 $1 $11 16. Rxd4 Nxd4) 16. cxd5 $16 {[%emt 0:00:02]} cxd5 {[%emt 0:00:03]} 17. Bd3 {[%emt 0:00:09]} Rd8 {[%emt 0:02:26]} 18. g4 {[%emt 0:00:06]} (18. Bxa7 $2 Ra8 19. g4 Rxa7 $19 (19... Qxa7 $2 20. Bb5+ Kf8 21. Qxa7 $18)) 18... Bg6 {[%emt 0:00:02]} 19. Bf5 {[%emt 0:00:01]} (19. Bxa7 $2 Ra8 20. Bxg6 hxg6 $19) 19... Nc5 {[%emt 0:00:02]} (19... O-O $16) 20. Nd4 {[%emt 0:00:10]} Ne4 {[%emt 0:00:15]} 21. Qg2 {[%emt 0:00:02]} ({White should try} 21. Qh2 $18) 21... Qb4 {[%emt 0:00:15]} (21... Qc7 $16) 22. Nb3 {[%emt 0:00:04]} (22. Rd3 $18) 22... a5 {[%emt 0:00:16]} 23. Rd4 {[%emt 0:00:01]} Qb5 {[%emt 0:00:23]} 24. a4 $36 {[%emt 0:00:01][%mdl 2048] White is on the roll.} Qc6 {[%emt 0:00:22]} 25. h4 {[%emt 0:00:27][%cal Bh3h4,Bh4h5][%mdl 32] [#] h5 would now be deadly.} f6 {[%emt 0:01:45]} (25... b5 $16) 26. e6 $18 {[%emt 0:00:08]} ({Resist} 26. Nxa5 Qc7 $16) 26... O-O {[%emt 0:00:53]} 27. Rhd1 {[%emt 0:00:05] Hoping for h5.} b5 {[%emt 0:00:29]} 28. h5 {[%emt 0:00:07]} ({Much less strong is} 28. Nxa5 $6 Qa8 $16) 28... Bxf5 {[%emt 0:00:02]} 29. gxf5 {[%emt 0:00:01][%cal Od4e4] [#] Black must now prevent Rxe4!} bxa4 $2 {[%emt 0:00:06]} (29... Kh8) 30. Nd2 $2 {[%emt 0:01:06]} (30. Rxe4 $18 {[%cal Oe3h6] Intending Bh6! and mate.} axb3 (30... dxe4 $2 {perishes.} 31. Rg1 $18) 31. cxb3 dxe4 32. Rg1) 30... Ng5 $16 {[%emt 0:00:13] Threatens to win with ...a3.} 31. c4 {[%emt 0:02:37] Weighted Error Value: White=0.39/Black=0.41.  Missed win:     	White=1     	---        Mistake:       	White=3     	Black=7      Inaccurate:     	White=3     	Black=3      OK:         	White=12    	Black=6      Best:        	---       	Black=1      Strong:       	White=1     	---} 1/2-1/2

[Event "3rd Rio Open-Rapid 2024"]
[Site "Rio de Janeiro"]
[Date "2024.04.24"]
[Round "7.2"]
[White "Urquiza, Marcello de Albuquer"]
[Black "De Siqueira, Luigy Lira"]
[Result "0-1"]
[ECO "C45"]
[WhiteElo "2005"]
[BlackElo "2274"]
[Annotator "TA"]
[PlyCount "100"]
[EventDate "2024.04.12"]
[EventType "swiss"]
[EventCountry "BRA"]
[SourceTitle "playchess.com"]
[Source "ChessBase"]
[SourceQuality "1"]
[TimeControl "600+5"]

{[%evp 11,100,9,2,-5,0,10,21,18,11,13,25,-7,-17,0,0,-85,-89,-98,-38,-39,0,0,69,0,129,118,101,-43,-45,-44,-39,-77,-82,-83,-82,-85,-92,-187,-178,-219,-200,-206,-189,-179,-179,-150,-181,-199,-180,-213,-219,-212,-214,-230,-221,-251,-254,-256,-242,-243,-240,-259,-239,-228,-233,-258,-251,-242,-239,-256,-243,-275,-260,-287,-287,-289,-260,-333,-328,-314,0,-317,-283,-293,-308,-347,-357,-350,-333,-389,-354]} 1. e4 {[%emt 0:00:03]} e5 {[%emt 0:00:02]} 2. Nf3 {[%emt 0:00:01]} Nc6 {[%emt 0:00:01]} 3. d4 {[%emt 0:00:01]} exd4 {[%emt 0:00:01]} 4. Nxd4 {[%emt 0:00:02]} Bc5 {[%emt 0:00:02]} 5. Nb3 {[%emt 0:00:05]} Bb6 {[%emt 0:00:01]} 6. Nc3 {[%emt 0:00:02]} Nf6 {[%emt 0:00:07]} 7. Qe2 {[%emt 0:00:19]} O-O {[%emt 0:00:02]} (7... a5 $5) 8. Be3 {[%emt 0:00:01]} d5 {[%emt 0:00:01][%cal Bd7d5,Bd5d4][%mdl 32] [#] ...Bg4 would now be deadly.} 9. O-O-O $1 {[%emt 0:02:26] The position is equal.} d4 {[%emt 0:00:02]} 10. Bg5 {[%emt 0:01:56][%cal Oc3d5]} h6 {[%emt 0:01:49]} 11. Bxf6 {[%emt 0:01:00]} Qxf6 {[%emt 0:00:02]} 12. Nd5 {[%emt 0:00:01]} Qd6 {[%emt 0:00:42]} 13. Qd2 {[%emt 0:01:01]} (13. Qd3 $11) 13... Be6 $17 {[%emt 0:00:21]} 14. Bc4 {[%emt 0:00:02]} Bxd5 {[%emt 0:00:39]} (14... Ne5 $17 15. Be2 c5) 15. Bxd5 $15 {[%emt 0:01:05]} Nb4 {[%emt 0:00:04]} 16. Bc4 {[%emt 0:00:53][%cal Rb3d4]} Nxa2+ {[%emt 0:01:08]} 17. Kb1 {[%emt 0:00:01]} Nb4 {[%emt 0:00:02]} (17... Qb4 $1 $11 {keeps the balance.} 18. Qxb4 Nxb4) 18. e5 $1 $16 {[%emt 0:01:00]} Qe7 {[%emt 0:00:17] [#]} 19. Nxd4 {[%emt 0:00:27]} (19. e6 $1 $16 {[%cal Re6f7]} c5 (19... fxe6 20. Rde1 $16) 20. exf7+ Rxf7 21. Rhe1 (21. Bxf7+ Qxf7 22. Nc1 Nc6 $11)) 19... Bxd4 $15 {[%emt 0:01:33]} 20. Qxd4 {[%emt 0:00:02]} Nc6 $1 $36 {[%emt 0:00:01][%csl LRd4,LRe5][%mdl 2048] Black has good play.} 21. Qd7 {[%emt 0:00:40]} Qxe5 {[%emt 0:00:05]} 22. g3 {[%emt 0:00:21]} Rad8 {[%emt 0:00:02]} 23. Qg4 {[%emt 0:00:02]} Qc5 {[%emt 0:00:15] And now ...Ne5 would win.} 24. Be2 {[%emt 0:00:15]} (24. Qf4 $17) 24... Qxf2 $19 {[%emt 0:00:13]} 25. Rdf1 {[%emt 0:00:07]} Qd4 {[%emt 0:00:08]} 26. Rf4 {[%emt 0:00:06]} Qd7 {[%emt 0:00:17]} 27. Qh5 {[%emt 0:00:05]} Qd5 {[%emt 0:00:06] Repels Bc4} 28. Qxd5 {[%emt 0:00:08]} Rxd5 {[%emt 0:00:01]} 29. Bc4 {[%emt 0:00:02]} Rd4 {[%emt 0:00:08]} 30. Rhf1 {[%emt 0:00:05]} Rxf4 {[%emt 0:00:11]} 31. Rxf4 {[%emt 0:00:01][%mdl 4096] Endgame. KRB-KRN} Ne5 {[%emt 0:00:02]} 32. Bd5 {[%emt 0:00:09]} c6 {[%emt 0:00:01]} 33. Be4 {[%emt 0:00:01]} Rd8 {[%emt 0:00:03]} 34. Kc1 {[%emt 0:00:02]} Kf8 {[%emt 0:00:11]} 35. Bg2 {[%emt 0:00:07]} Ke7 {[%emt 0:00:02]} 36. Rb4 {[%emt 0:00:06]} Rd7 {[%emt 0:00:05]} 37. Bh3 {[%emt 0:00:05]} Rc7 {[%emt 0:00:02]} 38. Re4 {[%emt 0:00:01]} f6 {[%emt 0:00:01]} 39. Ra4 {[%emt 0:00:03]} a6 {[%emt 0:00:01]} 40. Bg2 {[%emt 0:00:04]} Rd7 {[%emt 0:00:01]} 41. Rb4 {[%emt 0:00:06]} b5 {[%emt 0:00:06]} 42. Rb3 {[%emt 0:00:08]} a5 {[%emt 0:00:04]} 43. Rc3 {[%emt 0:00:06]} Rd6 {[%emt 0:00:03]} 44. b3 {[%emt 0:00:01]} Ke6 {[%emt 0:00:13]} 45. Bh3+ {[%emt 0:00:18]} Ke7 {[%emt 0:00:04]} 46. Bg2 $1 {[%emt 0:00:01]} Kd7 {[%emt 0:00:01]} 47. h3 {[%emt 0:00:08]} Kc7 {[%emt 0:00:08]} 48. g4 {[%emt 0:00:05]} Rd4 {[%emt 0:00:09]} 49. Re3 {[%emt 0:00:09]} Rf4 {[%emt 0:00:10]} 50. Be4 {[%emt 0:00:09]} Kd6 {[%emt 0:00:12] Weighted Error Value: White=0.21 (precise) /Black=0.21 (precise) .  Mistake:       	White=3     	Black=2      Inaccurate:     	White=3     	Black=1      OK:         	White=9     	Black=18     Best:        	---       	Black=2      Strong:       	White=3     	---} 0-1